fUSD/lending_fUSD_20251115
["ID","MTS","AMOUNT","RATE_DAILY","PERIOD"]
[394047493,1763230135775,-505.56979351,0.0004328,120]
[394047494,1763230135815,-206.25969159,0.00043299,120]
[394047495,1763230135850,-206.25969159,0.00043299,120]
[394047496,1763230135887,-478.96003305,0.000433,120]
[394047497,1763230135927,-150.83,0.00043317,120]
[394047498,1763230135965,-150.83,0.00043417,120]
[394047499,1763230136000,-96982.0169,0.00043444,30]
[394047500,1763230136037,-150.0,0.00043474,120]
[394047501,1763230136075,-150.83,0.00043517,120]
[394047502,1763230136112,-150.0,0.0004354,120]
[394047503,1763230136151,-150.0,0.00043602,120]
[394047504,1763230136191,-150.83,0.00043617,120]
[394047505,1763230136228,-2000.0,0.00043644,120]
[394047506,1763230136264,-515.53639077,0.00043684,30]
[394047507,1763230136306,-159.65,0.000437,30]
[394047508,1763230136345,-4000.0,0.00043717,120]
[394047509,1763230136386,-150.83,0.00043717,120]
[394047510,1763230136426,-150.83,0.00043817,120]
[394047511,1763230136464,-500.0,0.00043836,31]
[394047512,1763230136501,-600.0,0.00043836,120]
[394047513,1763230136543,-600.0,0.00043836,30]
[394047514,1763230136589,-600.0,0.00043836,31]
[394047515,1763230136629,-150.83,0.00043917,120]
[394047516,1763230136669,-150.0,0.00043919,120]
[394047517,1763230136706,-10000.0,0.00044,120]
[394047518,1763230136741,-192.40411158,0.00044,120]
[394047519,1763230136777,-152.0,0.00044,120]
[394047520,1763230136813,-152.0,0.00044,120]
[394047521,1763230136854,-252.71252119,0.00044,120]
[394047522,1763230136893,-200.0,0.00044,120]
[394047523,1763230136933,-9993.94710988,0.00044,120]
[394047524,1763230136970,-1108.94248368,0.00044,120]
[394047525,1763230137009,-517.71492826,0.00044,120]
[394047526,1763230137047,-547.904442,0.00044,57]
[394047527,1763230137091,-244.22,0.00044,30]
[394047528,1763230137134,-150.83,0.00044017,120]
[394047529,1763230137172,-1095.0,0.000441,30]
[394047530,1763230137210,-199.0,0.00044109,30]
[394047531,1763230137249,-150.83,0.00044117,120]
[394047532,1763230137286,-2000.0,0.00044192,120]
[394047533,1763230137326,-150.83,0.00044217,120]
[394047534,1763230137363,-158.41513076,0.0004425,120]
[394047535,1763230137406,-3000.0,0.00044253,120]
[394047536,1763230137447,-150.83,0.00044317,120]
[394047537,1763230137488,-150.0,0.00044397,120]
[394047538,1763230137528,-10157.89626871,0.000444,120]
[394047539,1763230137569,-150.83,0.00044417,120]
[394047540,1763230137607,-187.0,0.000445,60]
[394047541,1763230137644,-410.3869676,0.000445,120]
[394047542,1763230137682,-150.83,0.00044517,120]
[394047543,1763230137717,-150.0,0.00044583,120]
[394047544,1763230137754,-478.96003305,0.000446,120]
[394047545,1763230137789,-150.83,0.00044617,120]
[394047546,1763230137825,-152.0,0.000447,120]
[394047547,1763230137861,-150.83,0.00044717,120]
[394047548,1763230137897,-2000.0,0.0004474,120]
[394047549,1763230137931,-152.0,0.000448,120]
[394047550,1763230137967,-150.83,0.00044817,120]
[394047551,1763230138000,-1620.23,0.00044845,120]
[394047552,1763230138034,-5000.0,0.0004488,120]
[394047553,1763230138068,-5000.0,0.0004488,120]
[394047554,1763230138104,-5000.0,0.0004488,120]
[394047555,1763230138140,-5000.0,0.0004488,120]
[394047556,1763230138177,-5000.0,0.0004488,120]
[394047557,1763230138213,-5000.0,0.0004488,120]
[394047558,1763230138247,-368.07205189,0.000449,30]
[394047559,1763230138284,-150.83,0.00044917,120]
[394047560,1763230138321,-213.0,0.0004496,30]
[394047561,1763230138358,-157.1,0.00045,85]
[394047562,1763230138394,-534.1788215,0.00045,120]
[394047563,1763230138430,-449.83376299,0.00045,120]
[394047564,1763230138467,-212.18832738,0.00045,30]
[394047565,1763230138505,-206.4959515,0.00045,120]
[394047566,1763230138544,-152.40266218,0.00045,30]
[394047567,1763230138586,-450.2319664,0.00045,60]
[394047568,1763230138625,-238.35,0.00045,30]
[394047569,1763230138663,-300.0,0.00045,60]
[394047570,1763230138701,-380.83741197,0.00045,120]
[394047571,1763230138737,-161.08934561,0.00045,120]
[394047572,1763230138772,-99787.02820157,0.00045,120]
[394047573,1763230138806,-1412.56328046,0.00045,120]
[394047574,1763230138844,-585.0,0.00045,120]
[394047575,1763230138881,-343.97862376,0.00045,120]
[394047576,1763230138920,-200.0,0.00045,120]
[394047577,1763230138957,-150.0,0.00045,120]
[394047578,1763230138993,-285.29,0.00045,120]
[394047579,1763230139030,-179.64,0.00045,120]
[394047580,1763230139066,-230.63645895,0.00045,120]
[394047581,1763230139104,-150.83,0.00045017,120]
[394047582,1763230139142,-150.94,0.00045117,120]
[394047583,1763230139178,-206.25969159,0.00045126,120]
[394047584,1763230139215,-206.25969159,0.00045126,120]
[394047585,1763230139257,-2000.0,0.00045288,120]
[394047586,1763230139296,-152.0,0.000453,120]
[394047587,1763230139334,-517.71492826,0.000454,120]
[394047588,1763230139371,-86313.995,0.00045444,30]
[394047589,1763230139545,-199.0,0.00045479,30]
[394047590,1763230139586,-1658.0,0.000455,120]
[394047591,1763230139627,-150.0,0.00045508,120]
[394047592,1763230139664,-3500.0,0.00045591,120]
[394047593,1763230139701,-152.0,0.000457,120]
[394047594,1763230139737,-2000.0,0.00045836,120]
[394047595,1763230139773,-204.26268397,0.00046,30]
[394047596,1763230139808,-152.0,0.00046,120]
[394047597,1763230139842,-1251.8626429,0.00046,120]
[394047598,1763230139876,-356.63053494,0.00046,120]
[394047599,1763230139912,-200.0,0.00046,120]
[394047600,1763230139948,-394.32496792,0.00046,120]
[394047601,1763230139984,-522.48103378,0.00046,120]
[394047602,1763230140018,-186.36579923,0.00046021,30]
[394047603,1763230140055,-150.0,0.00046021,30]
[394047604,1763230140097,-312.46710985,0.00046021,30]
[394047605,1763230140140,-2000.0,0.00046384,120]
[394047606,1763230140183,-299.62688711,0.000464,120]
[394047607,1763230140227,-159.65,0.000464,30]
[394047608,1763230140268,-392.29135413,0.00046466,120]
[394047609,1763230140307,-152.0,0.000465,120]
[394047610,1763230140344,-150.0,0.00046574,120]
[394047611,1763230140381,-150.0,0.00046616,120]
[394047612,1763230140421,-152.0,0.000467,120]
[394047613,1763230140458,-517.71492826,0.000467,120]
[394047614,1763230140493,-415.11179763,0.000468,120]
[394047615,1763230140528,-163.93,0.000468,30]
[394047616,1763230140563,-199.0,0.00046849,30]
[394047617,1763230140597,-10000.0,0.0004688,120]
[394047618,1763230140632,-10000.0,0.0004688,120]
[394047619,1763230140667,-10000.0,0.0004688,120]
[394047620,1763230140705,-10000.0,0.0004688,120]
[394047621,1763230140744,-10000.0,0.0004688,120]
[394047622,1763230140781,-10000.0,0.0004688,120]
[394047623,1763230140817,-7489.0,0.0004688,120]
[394047624,1763230140851,-603.92596245,0.000469,120]
[394047625,1763230140886,-40157.22482313,0.000469,120]
[394047626,1763230140921,-2000.0,0.00046932,120]
[394047627,1763230140955,-206.25969159,0.00046952,120]
[394047628,1763230140989,-222.27224169,0.00046952,120]
[394047629,1763230141025,-206.25969159,0.00046952,120]
[394047630,1763230141063,-213.0,0.0004698,30]
[394047631,1763230141098,-2400.0,0.00047,32]
[394047632,1763230141140,-100000.0,0.00047,33]
[394047633,1763230141181,-200.0,0.00047,120]
[394047634,1763230141220,-150.0,0.0004708,120]
[394047635,1763230141255,-150.0,0.00047081,120]
[394047636,1763230141291,-151.39,0.0004726,120]
[394047637,1763230141328,-152.0,0.000473,120]
[394047638,1763230141363,-237.23816152,0.00047308,120]
[394047639,1763230141400,-152.0,0.000474,120]
[394047640,1763230141435,-67887.4118,0.00047444,30]
[394047641,1763230141470,-150.0,0.00047445,120]
[394047642,1763230141505,-2000.0,0.00047479,120]
[394047643,1763230141539,-198.29756685,0.000475,120]
[394047644,1763230141577,-100000.0,0.000475,34]
[394047645,1763230141614,-845.6,0.000478,120]
[394047646,1763230141652,-174.0,0.0004788,90]
[394047647,1763230141688,-3500.0,0.00047934,120]
[394047648,1763230141724,-264.205487,0.00048,120]
[394047649,1763230141760,-196.05337162,0.00048,120]
[394047650,1763230141798,-152.0,0.00048,120]
[394047651,1763230141837,-316.46818682,0.00048,120]
[394047652,1763230141876,-200.0,0.00048,120]
[394047653,1763230141912,-1658.0,0.00048,120]
[394047654,1763230141948,-394.32496792,0.00048,120]
[394047655,1763230141984,-522.48103378,0.00048,120]
[394047656,1763230142018,-175.97821451,0.00048,120]
[394047657,1763230142054,-244.22,0.00048,120]
[394047658,1763230142091,-100000.0,0.00048,35]
[394047659,1763230142125,-150.0,0.00048,120]
[394047660,1763230142160,-150.0,0.00048,120]
[394047661,1763230142192,-448.88248316,0.00048,120]
[394047662,1763230142224,-150.0,0.00048,120]
[394047663,1763230142258,-152.0,0.000481,120]
[394047664,1763230142295,-199.0,0.00048219,30]
[394047665,1763230142331,-263.01374769,0.00048316,30]
[394047666,1763230142368,-4000.0,0.00048318,120]
[394047667,1763230142408,-420.0,0.00048467,120]
[394047668,1763230142444,-100000.0,0.000485,36]
[394047669,1763230142481,-353.80921381,0.000486,120]
[394047670,1763230142520,-152.0,0.000487,120]
[394047671,1763230142557,-500.0,0.00048767,120]
[394047672,1763230142593,-500.0,0.00048767,120]
[394047673,1763230142629,-500.0,0.00048767,120]
[394047674,1763230142666,-500.0,0.00048767,120]
[394047675,1763230142703,-500.0,0.00048767,120]
[394047676,1763230142739,-289.34542816,0.00048767,120]
[394047677,1763230142774,-393.35056078,0.00048887,60]
[394047678,1763230142810,-433.3281303,0.00048888,120]
[394047679,1763230142848,-412.13752208,0.000489,120]
[394047680,1763230142885,-629.79818762,0.00048906,60]
[394047681,1763230142924,-213.0,0.0004899,30]
[394047682,1763230142960,-186.79230951,0.00049,30]
[394047683,1763230142995,-204.4309618,0.00049,120]
[394047684,1763230143033,-358.88876028,0.00049,120]
[394047685,1763230143071,-152.0,0.00049,120]
[394047686,1763230143110,-100000.0,0.00049,37]
[394047687,1763230143154,-200.0,0.00049,120]
[394047688,1763230143203,-515.22473767,0.00049076,60]
[394047689,1763230143246,-2095.0,0.000491,120]
[394047690,1763230143289,-600.0,0.00049314,33]
[394047691,1763230143328,-367.28245503,0.00049315,120]
[394047692,1763230143370,-500.0,0.00049315,120]
[394047693,1763230143593,-500.0,0.00049315,120]
[394047694,1763230143640,-500.0,0.00049315,120]
[394047695,1763230143684,-518.64784546,0.00049315,120]
[394047696,1763230143725,-500.0,0.00049315,33]
[394047697,1763230143765,-152.0,0.000494,120]
[394047698,1763230143805,-504.28621153,0.00049437,60]
[394047699,1763230143844,-48491.0084,0.00049444,120]
[394047700,1763230143885,-170.19709622,0.00049527,60]
[394047701,1763230143928,-300.0,0.00049581,120]
[394047702,1763230143973,-199.0,0.00049589,30]
[394047703,1763230144013,-500.0,0.000496,120]
[394047704,1763230144051,-2500.0,0.0004963,69]
[394047705,1763230144092,-396.0,0.000498,120]
[394047706,1763230144130,-152.0,0.000498,120]
[394047707,1763230144168,-5000.0,0.000498,120]
[394047708,1763230144206,-5000.0,0.000498,120]
[394047709,1763230144246,-5000.0,0.000498,120]
[394047710,1763230144285,-5000.0,0.000498,120]
[394047711,1763230144324,-5000.0,0.000498,120]
[394047712,1763230144362,-5000.0,0.000498,120]
[394047713,1763230144400,-5000.0,0.000498,120]
[394047714,1763230144439,-5000.0,0.000498,120]
[394047715,1763230144477,-5000.0,0.000498,120]
[394047716,1763230144514,-5000.0,0.000498,120]
[394047717,1763230144551,-5000.0,0.000498,120]
[394047718,1763230144593,-5000.0,0.000498,120]
[394047719,1763230144630,-5000.0,0.000498,120]
[394047720,1763230144667,-5000.0,0.000498,120]
[394047721,1763230144709,-5000.0,0.000498,120]
[394047722,1763230144756,-5000.0,0.000498,120]
[394047723,1763230144803,-5000.0,0.000498,120]
[394047724,1763230144852,-5000.0,0.000498,120]
[394047725,1763230144899,-5000.0,0.000498,120]
[394047726,1763230144949,-5000.0,0.000498,120]
[394047727,1763230144995,-5000.0,0.000498,120]
[394047728,1763230145043,-5000.0,0.000498,120]
[394047729,1763230145085,-5000.0,0.000498,120]
[394047730,1763230145130,-1975.39,0.00049832,30]
[394047731,1763230145177,-1620.23,0.00049892,120]
[394047732,1763230145220,-1240.79,0.00049973,30]
[394047733,1763230145261,-600.0,0.00049999,30]
[394047734,1763230145305,-600.0,0.00049999,111]
[394047735,1763230145347,-481.39153362,0.00049999,120]
[394047736,1763230145392,-457.08582049,0.00049999,120]
[394047737,1763230145435,-184.74657092,0.00049999,120]
[394047738,1763230145477,-500.0,0.00049999,120]
[394047739,1763230145518,-500.0,0.00049999,120]
[394047740,1763230145560,-500.0,0.00049999,120]
[394047741,1763230145598,-500.74116383,0.00049999,120]
[394047742,1763230145636,-500.0,0.00049999,120]
[394047743,1763230145693,-402.18522819,0.00049999,120]
[394047744,1763230145740,-500.0,0.00049999,120]
[394047745,1763230145786,-434.66703505,0.00049999,120]
[394047746,1763230145829,-50000.0,0.0005,50]
[394047747,1763230145879,-1000000.0,0.0005,120]
[394047748,1763230145935,-864847.43388899,0.0005,120]
[394047749,1763230168939,-164.0,0.00034,30]
[394047750,1763230168998,-687.42,0.00041098,30]
[394047751,1763230169061,-709.95,0.00041872,30]
[394047752,1763230169106,-307.57007395,0.00041999,109]
[394047753,1763230169153,-365.19680321,0.00049749,120]
[394047754,1763230169193,-249.76,0.00049749,120]
[394047755,1763230169231,-826.6695989,0.00049749,120]
[394047756,1763230169269,-350.0,0.00049999,120]
[394047757,1763230169310,-150.0,0.00049999,50]
[394047758,1763230169356,-150.0,0.00049999,50]
[394047759,1763230169396,-150.0,0.00049999,50]
[394047760,1763230169435,-150.0,0.00049999,50]
[394047761,1763230169478,-150.0,0.00049999,50]
[394047762,1763230169521,-155.02782084,0.00049999,50]
[394047763,1763230169563,-500.0,0.00049999,50]
[394047764,1763230169602,-500.0,0.00049999,50]
[394047765,1763230169640,-383.1495843,0.00049999,50]
[394047766,1763230169679,-150.0,0.00049999,50]
[394047767,1763230169716,-150.37406736,0.00049999,50]
[394047768,1763230169753,-150.0,0.00049999,50]
[394047769,1763230169789,-150.0,0.00049999,50]
[394047770,1763230169827,-150.0,0.00049999,50]
[394047771,1763230169865,-150.0,0.00049999,50]
[394047772,1763230169901,-150.0,0.00049999,50]
[394047773,1763230169936,-151.47667617,0.00049999,50]
[394047774,1763230169972,-500.0,0.00049999,50]
[394047775,1763230170007,-500.0,0.00049999,50]
[394047776,1763230170042,-500.0,0.00049999,50]
[394047777,1763230170079,-150.0,0.00049999,50]
[394047778,1763230170121,-150.0,0.00049999,50]
[394047779,1763230170164,-208.52920862,0.00049999,50]
[394047780,1763230170200,-500.0,0.00049999,50]
[394047781,1763230170239,-135152.56611101,0.0005,120]
[394047782,1763230170278,-1000000.0,0.0005,120]
[394047783,1763230170318,-1000000.0,0.0005,120]
[394047784,1763230170359,-1000000.0,0.0005,120]
[394047785,1763230170400,-1000000.0,0.0005,120]
[394047786,1763230170441,-855188.31005564,0.0005,120]
[394047787,1763230174982,-500.0,0.00049999,50]
[394047788,1763230175023,-500.0,0.00049999,50]
[394047789,1763230175060,-150.82616451,0.00049999,50]
[394047790,1763230175098,-500.0,0.00049999,50]
[394047791,1763230175134,-600.0,0.00049999,50]
[394047792,1763230175171,-153.47564565,0.00049999,50]
[394047793,1763230175209,-144811.68994436,0.0005,120]
[394047794,1763230175246,-1000000.0,0.0005,120]
[394047795,1763230175284,-1900000.0,0.0005,120]
[394047796,1763230175323,-299.999999,0.0005,120]
[394047797,1763230175360,-42875.23916128,0.0005,120]
[394047798,1763230175395,-225.07657718,0.0005,120]
[394047799,1763230175430,-165.10510117,0.0005,120]
[394047800,1763230175468,-443593.93,0.0005,120]
[394047801,1763230175502,-599.39457668,0.0005,120]
[394047802,1763230175536,-680.3155885,0.0005,120]
[394047803,1763230175569,-616.09980672,0.0005,30]
[394047804,1763230175604,-200.0,0.0005,120]
[394047805,1763230175639,-200.0,0.0005,120]
[394047806,1763230175673,-163.0,0.0005,120]
[394047807,1763230175710,-1000000.0,0.0005,120]
[394047808,1763230175750,-463165.84743495,0.0005,120]
[394047809,1763230180823,-151.0,0.0004133,120]
[394047810,1763230180865,-151.0,0.0004133,120]
[394047811,1763230180934,-1000.0,0.00049409,30]
[394047812,1763230180978,-536834.15256505,0.0005,120]
[394047813,1763230181026,-1000000.0,0.0005,120]
[394047814,1763230181073,-1000000.0,0.0005,120]
[394047815,1763230181120,-800000.0,0.0005,120]
[394047816,1763230181160,-1000000.0,0.0005,120]
[394047817,1763230181199,-661863.84743495,0.0005,120]
[394047818,1763230184426,-151.0,0.0004133,120]
[394047819,1763230184680,-162.234703,0.0004133,120]
[394047820,1763230184754,-687.25,0.0004633,30]
[394047821,1763230184796,-250.63365064,0.00049749,120]
[394047822,1763230184838,-338136.15256505,0.0005,120]
[394047823,1763230184877,-600000.0,0.0005,120]
[394047824,1763230184916,-650000.0,0.0005,120]
[394047825,1763230184953,-450.72046365,0.0005,30]
[394047826,1763230184988,-4614.79897376,0.0005,120]
[394047827,1763230185025,-1000000.0,0.0005,120]
[394047828,1763230185062,-944000.0,0.0005,120]
[394047829,1763230185103,-154.37399195,0.0005,120]
[394047830,1763230185140,-513.07898311,0.0005,120]
[394047831,1763230185180,-478.96003305,0.0005,30]
[394047832,1763230185217,-285.29,0.0005,120]
[394047833,1763230185253,-179.64,0.0005,120]
[394047834,1763230185297,-800000.0,0.0005,120]
[394047835,1763230185342,-215.47,0.0005,120]
[394047836,1763230185383,-188.49,0.0005,120]
[394047837,1763230185424,-596.42,0.0005,120]
[394047838,1763230185465,-575.55,0.0005,120]
[394047839,1763230185508,-426.25,0.0005,120]
[394047840,1763230185551,-372.81,0.0005,120]
[394047841,1763230185595,-401.65,0.0005,120]
[394047842,1763230185639,-150.0,0.0005,30]
[394047843,1763230185681,-150.0,0.0005,30]
[394047844,1763230185722,-150.0,0.0005,30]
[394047845,1763230185764,-152.0,0.000501,120]
[394047846,1763230185804,-3500.0,0.00050321,120]
[394047847,1763230185846,-1658.0,0.000505,120]
[394047848,1763230185890,-651399.22663579,0.000505,120]
[394047849,1763230189622,-151.0,0.000501,120]
[394047850,1763230189668,-348600.77336421,0.000505,120]
[394047851,1763230189713,-1000000.0,0.000505,120]
[394047852,1763230189756,-300000.0,0.000505,120]
[394047853,1763230189795,-300000.0,0.000505,120]
[394047854,1763230189833,-300000.0,0.000505,120]
[394047855,1763230189873,-300000.0,0.000505,120]
[394047856,1763230189914,-700000.0,0.000505,120]
[394047857,1763230189952,-150.0,0.000505,30]
[394047858,1763230189988,-152.0,0.000506,120]
[394047859,1763230190025,-907.0,0.00050668,120]
[394047860,1763230190063,-150.0,0.00050682,120]
[394047861,1763230190101,-152.0,0.000507,120]
[394047862,1763230190138,-150.0,0.00050945,120]
[394047863,1763230190195,-199.0,0.00050958,30]
[394047864,1763230190231,-1000.0,0.00050999,120]
[394047865,1763230190271,-50000.0,0.00051,51]
[394047866,1763230190308,-1464.21708125,0.00051,120]
[394047867,1763230190345,-488.05976017,0.00051,60]
[394047868,1763230190408,-1000000.0,0.00051,120]
[394047869,1763230190458,-696435.94979437,0.00051,120]
[394047870,1763230205263,-303564.05020563,0.00051,120]
[394047871,1763230205297,-1000000.0,0.00051,120]
[394047872,1763230205329,-1000000.0,0.00051,120]
[394047873,1763230205365,-399068.0,0.00051,120]
[394047874,1763230205394,-788.64993584,0.00051,120]
[394047875,1763230205425,-1044.96206755,0.00051,120]
[394047876,1763230205458,-1000000.0,0.00051,120]
[394047877,1763230205491,-1000000.0,0.00051,120]
[394047878,1763230205523,-295534.33779098,0.00051,120]
[394047879,1763230209720,-687.22,0.0004633,30]
[394047880,1763230209747,-190.59572537,0.00050999,60]
[394047881,1763230209775,-704465.66220902,0.00051,120]
[394047882,1763230209803,-1000000.0,0.00051,120]
[394047883,1763230209829,-307.87920793,0.00051,120]
[394047884,1763230209853,-200.0,0.00051,120]
[394047885,1763230209877,-150.0,0.00051,30]
[394047886,1763230209903,-5000.0,0.00051246,120]
[394047887,1763230210181,-152.0,0.000514,120]
[394047888,1763230210233,-152.0,0.000514,120]
[394047889,1763230210257,-2431.37,0.000514,120]
[394047890,1763230210280,-150.0,0.00051419,120]
[394047891,1763230210309,-1000000.0,0.000515,120]
[394047892,1763230210338,-1000000.0,0.000515,120]
[394047893,1763230210388,-1000000.0,0.000515,120]
[394047894,1763230210416,-478.96003305,0.000515,30]
[394047895,1763230210442,-1859.76,0.000516,120]
[394047896,1763230210468,-1859.76,0.000516,120]
[394047897,1763230210493,-1859.76,0.000516,120]
[394047898,1763230210521,-150.0,0.0005172,120]
[394047899,1763230210546,-288.89783888,0.00051755,30]
[394047900,1763230210571,-500.0,0.00051755,30]
[394047901,1763230210597,-500.0,0.00051755,30]
[394047902,1763230210622,-500.0,0.00051755,30]
[394047903,1763230210646,-500.0,0.00051755,30]
[394047904,1763230210670,-220.69436837,0.00051755,30]
[394047905,1763230210695,-150.0,0.00051755,30]
[394047906,1763230210725,-150.0,0.00051755,30]
[394047907,1763230210751,-150.0,0.00051755,30]
[394047908,1763230210779,-159.43736773,0.00051755,30]
[394047909,1763230210804,-500.0,0.00051755,30]
[394047910,1763230210829,-500.0,0.00051755,30]
[394047911,1763230210857,-500.0,0.00051755,30]
[394047912,1763230210885,-500.0,0.00051755,30]
[394047913,1763230210911,-500.0,0.00051755,30]
[394047914,1763230210937,-398.0,0.00051755,30]
[394047915,1763230210964,-457.0,0.00051755,30]
[394047916,1763230210989,-457.0,0.00051755,30]
[394047917,1763230211015,-457.0,0.00051755,30]
[394047918,1763230211039,-457.0,0.00051755,30]
[394047919,1763230211063,-457.0,0.00051755,30]
[394047920,1763230211089,-457.0,0.00051755,30]
[394047921,1763230211123,-457.0,0.00051755,30]
[394047922,1763230211148,-457.0,0.00051755,30]
[394047923,1763230211176,-457.0,0.00051755,30]
[394047924,1763230211204,-457.0,0.00051755,30]
[394047925,1763230211231,-457.0,0.00051755,30]
[394047926,1763230211255,-457.0,0.00051755,30]
[394047927,1763230211280,-457.0,0.00051755,30]
[394047928,1763230211304,-457.0,0.00051755,30]
[394047929,1763230211332,-457.0,0.00051755,30]
[394047930,1763230211357,-457.0,0.00051755,30]
[394047931,1763230211382,-457.0,0.00051755,30]
[394047932,1763230211406,-457.0,0.00051755,30]
[394047933,1763230211430,-457.0,0.00051755,30]
[394047934,1763230211455,-457.0,0.00051755,30]
[394047935,1763230211480,-457.0,0.00051755,30]
[394047936,1763230211504,-457.0,0.00051755,30]
[394047937,1763230211533,-457.0,0.00051755,30]
[394047938,1763230211557,-479.48263957,0.00051755,30]
[394047939,1763230211585,-150.0,0.00051911,120]
[394047940,1763230211611,-234.56531658,0.00051999,120]
[394047941,1763230211635,-1967.33866371,0.00051999,120]
[394047942,1763230211659,-226.43613637,0.00051999,120]
[394047943,1763230211683,-1000.0,0.00051999,120]
[394047944,1763230211710,-50000.0,0.00052,52]
[394047945,1763230211735,-250.0,0.00052,120]
[394047946,1763230211765,-1000.0,0.00052,120]
[394047947,1763230211789,-1000.0,0.00052,120]
[394047948,1763230211813,-1000.0,0.00052,120]
[394047949,1763230211837,-400.0,0.00052,120]
[394047950,1763230211863,-1650.09668569,0.00052,120]
[394047951,1763230211891,-204019.08380773,0.00052,120]
[394047952,1763230219179,-158.58,0.000307,30]
[394047953,1763230219210,-158.58,0.000357,30]
[394047954,1763230219244,-158.58,0.000392,30]
[394047955,1763230219278,-158.58,0.000409,30]
[394047956,1763230219331,-158.58,0.00043,30]
[394047957,1763230219364,-150.0,0.00050999,51]
[394047958,1763230219390,-150.0,0.00050999,51]
[394047959,1763230219414,-150.0,0.00050999,51]
[394047960,1763230219438,-600.0,0.00050999,120]
[394047961,1763230219641,-600.0,0.00050999,120]
[394047962,1763230219666,-600.0,0.00050999,120]
[394047963,1763230219691,-600.0,0.00050999,120]
[394047964,1763230219716,-600.0,0.00050999,120]
[394047965,1763230219740,-600.0,0.00050999,120]
[394047966,1763230219763,-600.0,0.00050999,120]
[394047967,1763230219786,-150.0,0.00051755,30]
[394047968,1763230219814,-795980.91619227,0.00052,120]
[394047969,1763230219841,-1000000.0,0.00052,120]
[394047970,1763230219870,-1000000.0,0.00052,120]
[394047971,1763230219897,-1000000.0,0.00052,120]
[394047972,1763230219924,-1000000.0,0.00052,120]
[394047973,1763230219948,-1000.0,0.00052,120]
[394047974,1763230219972,-200.0,0.00052,120]
[394047975,1763230219996,-1000.0,0.00052,120]
[394047976,1763230220020,-1000.0,0.00052,120]
[394047977,1763230220044,-1000.0,0.00052,120]
[394047978,1763230220069,-1000.0,0.00052,120]
[394047979,1763230220096,-1000.0,0.00052,120]
[394047980,1763230220122,-1000.0,0.00052,120]
[394047981,1763230220147,-1000.0,0.00052,120]
[394047982,1763230220173,-1000.0,0.00052,120]
[394047983,1763230220196,-1000.0,0.00052,120]
[394047984,1763230220219,-655.18,0.00052,120]
[394047985,1763230220242,-1000.0,0.00052,120]
[394047986,1763230220265,-3175.0,0.00052,120]
[394047987,1763230220290,-500.0,0.00052054,120]
[394047988,1763230220314,-500.0,0.00052054,120]
[394047989,1763230220337,-1167.56,0.00052055,120]
[394047990,1763230220367,600.0,0.00050999,120]
[394047991,1763230220394,150.0,0.00051093,30]
[394047992,1763230220421,150.0,0.00051339,30]